[Event "*** Titled Tuesday Blitz"]
[Site "Chess.com"]
[Date "2020.04.14"]
[Round "9"]
[White "DrBergerBerger"]
[Black "Mischuk_D"]
[Result "0-1"]
[WhiteElo "2527"]
[BlackElo "2711"]
[TimeControl "180+1"]
[EndTime "11:41:56 PDT"]
[Termination "Mischuk_D won by resignation"]

1. e4 {[%clk 0:03:00.9]} 1... c5 {[%clk 0:02:59.1]} 2. Nc3 {[%clk 0:03:00.5]}
2... Nc6 {[%clk 0:02:58.6]} 3. Nge2 {[%clk 0:02:59.9]} 3... g6 {[%clk
0:02:57.7]} 4. d4 {[%clk 0:02:59.1]} 4... cxd4 {[%clk 0:02:58.6]} 5. Nxd4 {[%clk
0:02:59.5]} 5... Bg7 {[%clk 0:02:59.1]} 6. Nde2 {[%clk 0:02:57.5]} 6... h5
{[%clk 0:02:57.4]} 7. h4 {[%clk 0:02:44.2]} 7... Nf6 {[%clk 0:02:57.1]} 8. Bg5
{[%clk 0:02:26.7]} 8... Qa5 {[%clk 0:02:54.4]} 9. Qd2 {[%clk 0:02:21.4]} 9... d6
{[%clk 0:02:46.8]} 10. f3 {[%clk 0:02:14.4]} 10... Be6 {[%clk 0:02:46.2]} 11.
Nf4 {[%clk 0:02:08.9]} 11... Bd7 {[%clk 0:02:42.3]} 12. Nfd5 {[%clk 0:01:39.6]}
12... Nxd5 {[%clk 0:02:35.7]} 13. Nxd5 {[%clk 0:01:37.2]} 13... Qxd2+ {[%clk
0:02:35]} 14. Kxd2 {[%clk 0:01:37.4]} 14... Rc8 {[%clk 0:02:35.1]} 15. c3 {[%clk
0:01:32.6]} 15... Be6 {[%clk 0:02:32]} 16. Bb5 {[%clk 0:01:20.7]} 16... f6
{[%clk 0:02:27.2]} 17. Be3 {[%clk 0:01:15.7]} 17... a6 {[%clk 0:02:26.4]} 18.
Ba4 {[%clk 0:01:01.3]} 18... Kf7 {[%clk 0:02:24.3]} 19. Nf4 {[%clk 0:00:56.9]}
19... Na5 {[%clk 0:02:22.1]} 20. Nxe6 {[%clk 0:00:54.5]} 20... Kxe6 {[%clk
0:02:21.8]} 21. Bb3+ {[%clk 0:00:47.8]} 21... Nxb3+ {[%clk 0:02:21.6]} 22. axb3
{[%clk 0:00:48.7]} 22... f5 {[%clk 0:02:22.4]} 23. exf5+ {[%clk 0:00:40]} 23...
gxf5 {[%clk 0:02:22.4]} 24. Rhe1 {[%clk 0:00:32.3]} 24... Kf7 {[%clk 0:02:21.9]}
25. Ra5 {[%clk 0:00:26.6]} 25... e6 {[%clk 0:02:19.1]} 26. Kc2 {[%clk
0:00:15.2]} 26... Bf6 {[%clk 0:02:16.2]} 27. Bf2 {[%clk 0:00:14.9]} 27... f4
{[%clk 0:02:11.9]} 28. Re4 {[%clk 0:00:13.5]} 28... e5 {[%clk 0:02:11.7]} 29.
Rd5 {[%clk 0:00:11.6]} 29... Ke6 {[%clk 0:02:11.2]} 30. Rd2 {[%clk 0:00:08.3]}
30... Rhg8 {[%clk 0:02:11.4]} 31. Be1 {[%clk 0:00:06.8]} 31... Rg7 {[%clk
0:02:10.4]} 32. c4 {[%clk 0:00:06.7]} 32... Rcg8 {[%clk 0:02:09.8]} 33. Ree2
{[%clk 0:00:06.3]} 33... Be7 {[%clk 0:02:08]} 34. b4 {[%clk 0:00:06.3]} 34...
Kf5 {[%clk 0:02:07.7]} 35. Kb3 {[%clk 0:00:05.4]} 35... b5 {[%clk 0:02:07.8]}
36. cxb5 {[%clk 0:00:03.8]} 36... axb5 {[%clk 0:02:07.6]} 37. Rd5 {[%clk
0:00:04.3]} 37... Rxg2 {[%clk 0:02:07]} 38. Rxg2 {[%clk 0:00:04.2]} 38... Rxg2
{[%clk 0:02:07.9]} 39. Rxb5 {[%clk 0:00:04.6]} 39... Re2 {[%clk 0:02:08.1]} 40.
Bc3 {[%clk 0:00:04.6]} 40... Rf2 {[%clk 0:02:08.2]} 41. Rd5 {[%clk 0:00:03.6]}
41... Ke6 {[%clk 0:02:00.5]} 42. Rd3 {[%clk 0:00:03]} 42... Bxh4 {[%clk
0:02:00.5]} 43. b5 {[%clk 0:00:03.1]} 43... Bd8 {[%clk 0:02:01]} 44. Ka4 {[%clk
0:00:02.3]} 44... h4 {[%clk 0:01:59.8]} 45. Bb4 {[%clk 0:00:02.5]} 45... d5
{[%clk 0:01:58.8]} 46. Rc3 {[%clk 0:00:01.5]} 46... h3 {[%clk 0:01:54.3]} 47.
Rc6+ {[%clk 0:00:02.4]} 47... Kf5 {[%clk 0:01:54.4]} 48. Rh6 {[%clk 0:00:03]}
48... h2 {[%clk 0:01:53.6]} 49. Ba5 {[%clk 0:00:03.3]} 49... Bxa5 {[%clk
0:01:53]} 50. Kxa5 {[%clk 0:00:04.2]} 50... Rxb2 {[%clk 0:01:53.5]} 51. b6
{[%clk 0:00:04.5]} 51... e4 {[%clk 0:01:53.7]} 52. Rh5+ {[%clk 0:00:01.9]} 52...
Kg6 {[%clk 0:01:53.4]} 53. Rxd5 {[%clk 0:00:01.4]} 0-1

[Event "*** Titled Tuesday Blitz"]
[Site "Chess.com"]
[Date "2020.04.14"]
[Round "9"]
[White "viktorko131"]
[Black "Charlottemillard17"]
[Result "1-0"]
[WhiteElo "2118"]
[BlackElo "1375"]
[TimeControl "180+1"]
[EndTime "11:42:01 PDT"]
[Termination "viktorko131 won by checkmate"]

1. e4 {[%clk 0:03:00.9]} 1... e5 {[%clk 0:02:59.7]} 2. Nf3 {[%clk 0:02:59.7]}
2... Nc6 {[%clk 0:02:59.6]} 3. Bb5 {[%clk 0:02:58.3]} 3... a6 {[%clk 0:02:58.5]}
4. Ba4 {[%clk 0:02:57.6]} 4... Bc5 {[%clk 0:02:56.9]} 5. O-O {[%clk 0:02:55.6]}
5... b5 {[%clk 0:02:56.1]} 6. Bb3 {[%clk 0:02:54.5]} 6... Nf6 {[%clk 0:02:55.1]}
7. c3 {[%clk 0:02:48]} 7... O-O {[%clk 0:02:49.4]} 8. d4 {[%clk 0:02:46.7]} 8...
exd4 {[%clk 0:02:48.8]} 9. cxd4 {[%clk 0:02:46.2]} 9... Bb6 {[%clk 0:02:47.9]}
10. e5 {[%clk 0:02:35.3]} 10... Ne8 {[%clk 0:02:19.3]} 11. Bg5 {[%clk
0:02:17.9]} 11... Ne7 {[%clk 0:02:13.7]} 12. Nc3 {[%clk 0:02:16.8]} 12... Kh8
{[%clk 0:01:58]} 13. Nd5 {[%clk 0:01:38]} 13... f6 {[%clk 0:01:51]} 14. exf6
{[%clk 0:01:32.5]} 14... gxf6 {[%clk 0:01:48.8]} 15. Nxb6 {[%clk 0:01:28]} 15...
cxb6 {[%clk 0:01:38.5]} 16. Bh6 {[%clk 0:01:24.9]} 16... Ng7 {[%clk 0:01:33.2]}
17. Nh4 {[%clk 0:01:03.4]} 17... Nef5 {[%clk 0:01:25.3]} 18. Nxf5 {[%clk
0:01:00.9]} 18... Nxf5 {[%clk 0:01:24.9]} 19. Bxf8 {[%clk 0:01:01.1]} 19... Qxf8
{[%clk 0:01:24.6]} 20. Qf3 {[%clk 0:01:01.6]} 20... Rb8 {[%clk 0:01:21.9]} 21.
Qxf5 {[%clk 0:00:59.9]} 21... d6 {[%clk 0:01:18]} 22. Qf4 {[%clk 0:00:52.2]}
22... Qg7 {[%clk 0:01:14]} 23. Rfe1 {[%clk 0:00:47]} 23... Bb7 {[%clk
0:01:07.2]} 24. f3 {[%clk 0:00:37.8]} 24... h5 {[%clk 0:00:58.8]} 25. Qxd6
{[%clk 0:00:31.6]} 25... Rf8 {[%clk 0:00:53.9]} 26. Re7 {[%clk 0:00:28.7]} 26...
Qg5 {[%clk 0:00:41.9]} 27. Rxb7 {[%clk 0:00:25.4]} 27... h4 {[%clk 0:00:40]} 28.
Qxf8+ {[%clk 0:00:23.1]} 28... Qg8 {[%clk 0:00:38.3]} 29. Qxg8# {[%clk
0:00:19.5]} 1-0

[Event "*** Titled Tuesday Blitz"]
[Site "Chess.com"]
[Date "2020.04.14"]
[Round "9"]
[White "druskacik"]
[Black "albano87"]
[Result "0-1"]
[WhiteElo "2586"]
[BlackElo "2234"]
[TimeControl "180+1"]
[EndTime "11:42:08 PDT"]
[Termination "albano87 won by resignation"]

1. e4 {[%clk 0:03:00.9]} 1... c5 {[%clk 0:02:31.8]} 2. Nf3 {[%clk 0:02:58.3]}
2... Nc6 {[%clk 0:02:31.4]} 3. d4 {[%clk 0:02:56.9]} 3... cxd4 {[%clk
0:02:31.8]} 4. Nxd4 {[%clk 0:02:57.8]} 4... Nf6 {[%clk 0:02:32]} 5. Nc3 {[%clk
0:02:56.6]} 5... d6 {[%clk 0:02:31.7]} 6. f3 {[%clk 0:02:56]} 6... Nxd4 {[%clk
0:02:29.3]} 7. Qxd4 {[%clk 0:02:55.5]} 7... g6 {[%clk 0:02:30.2]} 8. Bg5 {[%clk
0:02:44.7]} 8... Bg7 {[%clk 0:02:29.6]} 9. Nd5 {[%clk 0:02:44.2]} 9... O-O
{[%clk 0:02:25.3]} 10. Bxf6 {[%clk 0:02:34.8]} 10... exf6 {[%clk 0:02:26.2]} 11.
O-O-O {[%clk 0:02:29.6]} 11... f5 {[%clk 0:02:26.1]} 12. Qb4 {[%clk 0:02:28.9]}
12... fxe4 {[%clk 0:02:22]} 13. fxe4 {[%clk 0:02:20.9]} 13... Be6 {[%clk
0:02:22.9]} 14. Kb1 {[%clk 0:02:04.6]} 14... a5 {[%clk 0:02:18.8]} 15. Qb5
{[%clk 0:01:49.4]} 15... a4 {[%clk 0:02:11.6]} 16. a3 {[%clk 0:01:47.4]} 16...
Ra5 {[%clk 0:02:03.3]} 17. Qb4 {[%clk 0:01:28.3]} 17... Bxd5 {[%clk 0:01:48.7]}
18. exd5 {[%clk 0:01:20.3]} 18... Qf6 {[%clk 0:01:44.5]} 19. c3 {[%clk
0:01:17.9]} 19... Rc5 {[%clk 0:01:40.2]} 20. Qxa4 {[%clk 0:01:08]} 20... Rfc8
{[%clk 0:01:28.3]} 21. Rc1 {[%clk 0:00:48]} 21... Qf5+ {[%clk 0:01:15.5]} 22.
Rc2 {[%clk 0:00:26.1]} 22... Bxc3 {[%clk 0:01:01]} 23. bxc3 {[%clk 0:00:27]}
23... Rxc3 {[%clk 0:00:58.5]} 24. Bd3 {[%clk 0:00:26]} 24... Qxd3 {[%clk
0:00:51.1]} 25. Rc1 {[%clk 0:00:24.1]} 25... Rb3+ {[%clk 0:00:49.8]} 26. Ka1
{[%clk 0:00:19.1]} 26... Rxa3+ {[%clk 0:00:49.7]} 27. Kb2 {[%clk 0:00:16.6]}
27... Rxa4 {[%clk 0:00:43.9]} 28. Rxc8+ {[%clk 0:00:16.5]} 28... Kg7 {[%clk
0:00:43.5]} 0-1

[Event "*** Titled Tuesday Blitz"]
[Site "Chess.com"]
[Date "2020.04.14"]
[Round "9"]
[White "Oleksandr_Bortnyk"]
[Black "tigra"]
[Result "1-0"]
[WhiteElo "3040"]
[BlackElo "2841"]
[TimeControl "180+1"]
[EndTime "11:42:09 PDT"]
[Termination "Oleksandr_Bortnyk won by resignation"]

1. e4 {[%clk 0:03:00.9]} 1... c5 {[%clk 0:02:57.2]} 2. c3 {[%clk 0:02:58.2]}
2... Nf6 {[%clk 0:02:56]} 3. e5 {[%clk 0:02:58.5]} 3... Nd5 {[%clk 0:02:56.2]}
4. d4 {[%clk 0:02:59.4]} 4... cxd4 {[%clk 0:02:56.4]} 5. Nf3 {[%clk 0:03:00.3]}
5... d6 {[%clk 0:02:55.1]} 6. cxd4 {[%clk 0:03:01.2]} 6... dxe5 {[%clk
0:02:55.5]} 7. Nxe5 {[%clk 0:02:57.7]} 7... Nc6 {[%clk 0:02:55.5]} 8. Bc4 {[%clk
0:02:55.3]} 8... e6 {[%clk 0:02:48.4]} 9. O-O {[%clk 0:02:53.2]} 9... Be7 {[%clk
0:02:45.9]} 10. Nf3 {[%clk 0:02:50.3]} 10... O-O {[%clk 0:02:45.5]} 11. Nc3
{[%clk 0:02:50.2]} 11... a6 {[%clk 0:02:43.3]} 12. Qe2 {[%clk 0:02:47.9]} 12...
b5 {[%clk 0:02:34.9]} 13. Bd3 {[%clk 0:02:48.2]} 13... Nxc3 {[%clk 0:02:27.3]}
14. bxc3 {[%clk 0:02:47]} 14... Bb7 {[%clk 0:02:28.2]} 15. Qe4 {[%clk
0:02:29.6]} 15... g6 {[%clk 0:02:26.7]} 16. Bh6 {[%clk 0:02:29.6]} 16... Re8
{[%clk 0:02:22]} 17. Rfe1 {[%clk 0:02:14.2]} 17... Qc7 {[%clk 0:01:58.6]} 18.
Qg4 {[%clk 0:02:04.6]} 18... Bf6 {[%clk 0:01:33.8]} 19. Ng5 {[%clk 0:01:57.6]}
19... Ne7 {[%clk 0:01:33.1]} 20. Rxe6 {[%clk 0:01:24.5]} 20... Bxg5 {[%clk
0:00:50.5]} 21. Bxg5 {[%clk 0:01:22.7]} 21... Bc8 {[%clk 0:00:50.3]} 22. Rxe7
{[%clk 0:00:53.4]} 22... Rxe7 {[%clk 0:00:51]} 23. Qh4 {[%clk 0:00:45.8]} 23...
Qxc3 {[%clk 0:00:42.7]} 24. Rf1 {[%clk 0:00:40.5]} 24... Re1 {[%clk 0:00:37.2]}
25. Bf6 {[%clk 0:00:35]} 25... Qc1 {[%clk 0:00:24.5]} 26. Be5 {[%clk 0:00:26.1]}
26... Rxf1+ {[%clk 0:00:18.8]} 27. Bxf1 {[%clk 0:00:27]} 27... Qc6 {[%clk
0:00:11.3]} 28. Qd8+ {[%clk 0:00:26.5]} 1-0

[Event "*** Titled Tuesday Blitz"]
[Site "Chess.com"]
[Date "2020.04.14"]
[Round "9"]
[White "asimali1977"]
[Black "KetiTsatsalashvili"]
[Result "0-1"]
[WhiteElo "1984"]
[BlackElo "2226"]
[TimeControl "180+1"]
[EndTime "11:42:09 PDT"]
[Termination "KetiTsatsalashvili won by checkmate"]

1. Nf3 {[%clk 0:03:00.7]} 1... Nf6 {[%clk 0:02:54.3]} 2. g3 {[%clk 0:03:00.3]}
2... e6 {[%clk 0:02:54.2]} 3. Bg2 {[%clk 0:03:00]} 3... d5 {[%clk 0:02:54.8]} 4.
O-O {[%clk 0:02:59.5]} 4... Be7 {[%clk 0:02:54.2]} 5. d3 {[%clk 0:02:59.5]} 5...
O-O {[%clk 0:02:54.1]} 6. Nbd2 {[%clk 0:02:59.3]} 6... Nbd7 {[%clk 0:02:50.7]}
7. e4 {[%clk 0:02:57]} 7... e5 {[%clk 0:02:48.5]} 8. Re1 {[%clk 0:02:55.4]} 8...
dxe4 {[%clk 0:02:43.2]} 9. dxe4 {[%clk 0:02:54.1]} 9... c6 {[%clk 0:02:42.9]}
10. c3 {[%clk 0:02:52.7]} 10... Qc7 {[%clk 0:02:42.8]} 11. b4 {[%clk 0:02:44.7]}
11... Rd8 {[%clk 0:02:37.6]} 12. Qc2 {[%clk 0:02:41.3]} 12... Nf8 {[%clk
0:02:37.3]} 13. Bb2 {[%clk 0:02:38.9]} 13... Be6 {[%clk 0:02:32.8]} 14. a3
{[%clk 0:02:34.7]} 14... h6 {[%clk 0:02:29.2]} 15. Rad1 {[%clk 0:02:32.8]} 15...
Rd7 {[%clk 0:02:26.5]} 16. Nc4 {[%clk 0:02:30.6]} 16... Bxc4 {[%clk 0:02:13.9]}
17. Rxd7 {[%clk 0:02:28.8]} 17... N8xd7 {[%clk 0:02:10.7]} 18. Rd1 {[%clk
0:02:25.4]} 18... Be6 {[%clk 0:02:08.9]} 19. c4 {[%clk 0:02:22.7]} 19... Rd8
{[%clk 0:02:06.3]} 20. c5 {[%clk 0:02:20.2]} 20... Bg4 {[%clk 0:02:02.7]} 21. h3
{[%clk 0:02:18.1]} 21... Bh5 {[%clk 0:02:02.7]} 22. Rd2 {[%clk 0:02:10.2]} 22...
Bg6 {[%clk 0:02:01.2]} 23. Nh4 {[%clk 0:02:07.3]} 23... Bh7 {[%clk 0:02:01]} 24.
Nf5 {[%clk 0:01:57.7]} 24... Bxf5 {[%clk 0:01:59.5]} 25. exf5 {[%clk 0:01:57.5]}
25... Nf8 {[%clk 0:01:58.6]} 26. g4 {[%clk 0:01:49.1]} 26... Rxd2 {[%clk
0:01:54.9]} 27. Qxd2 {[%clk 0:01:48.6]} 27... Qd7 {[%clk 0:01:55.1]} 28. Qxd7
{[%clk 0:01:46.8]} 28... N8xd7 {[%clk 0:01:53.1]} 29. Kf1 {[%clk 0:01:44.3]}
29... Nd5 {[%clk 0:01:53]} 30. Bxd5 {[%clk 0:01:35.9]} 30... cxd5 {[%clk
0:01:52.2]} 31. Ke2 {[%clk 0:01:34.1]} 31... a6 {[%clk 0:01:51.9]} 32. Kd3
{[%clk 0:01:32.9]} 32... g6 {[%clk 0:01:52]} 33. fxg6 {[%clk 0:01:31]} 33...
fxg6 {[%clk 0:01:52.9]} 34. Ke3 {[%clk 0:01:26.7]} 34... Kf7 {[%clk 0:01:52.8]}
35. f4 {[%clk 0:01:25.2]} 35... Ke6 {[%clk 0:01:48.4]} 36. fxe5 {[%clk
0:01:22.3]} 36... Nxe5 {[%clk 0:01:49.3]} 37. Ke2 {[%clk 0:01:19]} 37... Nc4
{[%clk 0:01:34.8]} 38. Bc1 {[%clk 0:01:18.6]} 38... Bg5 {[%clk 0:01:31.3]} 39.
Bxg5 {[%clk 0:01:10.2]} 39... hxg5 {[%clk 0:01:32.2]} 40. a4 {[%clk 0:01:08.7]}
40... d4 {[%clk 0:01:31.2]} 41. Kd3 {[%clk 0:01:06.3]} 41... Kd5 {[%clk
0:01:31.1]} 42. Kc2 {[%clk 0:00:59.8]} 42... Ke4 {[%clk 0:01:27.6]} 43. Kb3
{[%clk 0:00:50.7]} 43... Ne5 {[%clk 0:01:25.4]} 44. b5 {[%clk 0:00:47.8]} 44...
axb5 {[%clk 0:01:21.1]} 45. axb5 {[%clk 0:00:47.3]} 45... d3 {[%clk 0:01:21]}
46. Kc3 {[%clk 0:00:44.3]} 46... Ke3 {[%clk 0:01:20.4]} 47. c6 {[%clk
0:00:43.8]} 47... bxc6 {[%clk 0:01:19.7]} 48. b6 {[%clk 0:00:42.3]} 48... d2
{[%clk 0:01:19.3]} 49. b7 {[%clk 0:00:41.1]} 49... Nd7 {[%clk 0:01:19.1]} 50.
Kc4 {[%clk 0:00:41]} 50... d1=Q {[%clk 0:01:18.3]} 51. Kc3 {[%clk 0:00:41]}
51... Qc1+ {[%clk 0:01:16.4]} 52. Kb4 {[%clk 0:00:39.1]} 52... Qb2+ {[%clk
0:01:15.6]} 53. Ka5 {[%clk 0:00:39.1]} 53... Qb5# {[%clk 0:01:14.1]} 0-1

[Event "*** Titled Tuesday Blitz"]
[Site "Chess.com"]
[Date "2020.04.14"]
[Round "9"]
[White "Bastiandash"]
[Black "WoolworthsManly"]
[Result "1/2-1/2"]
[WhiteElo "2061"]
[BlackElo "2665"]
[TimeControl "180+1"]
[EndTime "11:42:09 PDT"]
[Termination "Game drawn - insufficient material"]

1. d4 {[%clk 0:03:00.9]} 1... d5 {[%clk 0:03:00.1]} 2. Nf3 {[%clk 0:03:01.5]}
2... Nf6 {[%clk 0:02:59.2]} 3. c3 {[%clk 0:03:01.9]} 3... c5 {[%clk 0:02:59.3]}
4. Bg5 {[%clk 0:03:01.1]} 4... Ne4 {[%clk 0:02:58.1]} 5. Bf4 {[%clk 0:02:57.2]}
5... Qb6 {[%clk 0:02:57.5]} 6. Qb3 {[%clk 0:02:56.2]} 6... Nc6 {[%clk
0:02:57.4]} 7. Nbd2 {[%clk 0:02:55.3]} 7... Nxd2 {[%clk 0:02:57.1]} 8. Bxd2
{[%clk 0:02:38.1]} 8... c4 {[%clk 0:02:50.5]} 9. Qxb6 {[%clk 0:02:24]} 9... axb6
{[%clk 0:02:51.4]} 10. a3 {[%clk 0:02:24.2]} 10... b5 {[%clk 0:02:51.3]} 11. Rd1
{[%clk 0:02:23.9]} 11... h6 {[%clk 0:02:51.3]} 12. h4 {[%clk 0:02:21]} 12... Bf5
{[%clk 0:02:50.6]} 13. g3 {[%clk 0:02:20.6]} 13... e6 {[%clk 0:02:42.8]} 14. Bh3
{[%clk 0:02:20.3]} 14... Bd6 {[%clk 0:02:39.2]} 15. Bxf5 {[%clk 0:02:18.5]}
15... exf5 {[%clk 0:02:37.7]} 16. Bf4 {[%clk 0:02:18.3]} 16... Kd7 {[%clk
0:02:30]} 17. e3 {[%clk 0:02:05.6]} 17... Rhe8 {[%clk 0:02:27.3]} 18. Kd2 {[%clk
0:01:57.9]} 18... Nd8 {[%clk 0:02:15.6]} 19. h5 {[%clk 0:01:27.8]} 19... Ne6
{[%clk 0:02:14.8]} 20. Rdg1 {[%clk 0:01:24.1]} 20... Ke7 {[%clk 0:02:11.3]} 21.
Bxd6+ {[%clk 0:01:18.9]} 21... Kxd6 {[%clk 0:02:10.6]} 22. g4 {[%clk 0:01:19.3]}
22... f4 {[%clk 0:02:07.4]} 23. g5 {[%clk 0:01:17.8]} 23... fxe3+ {[%clk
0:02:07.5]} 24. fxe3 {[%clk 0:01:18.7]} 24... Ke7 {[%clk 0:02:02.3]} 25. gxh6
{[%clk 0:00:57.1]} 25... gxh6 {[%clk 0:02:03.2]} 26. Ne5 {[%clk 0:00:58]} 26...
Rg8 {[%clk 0:02:02.7]} 27. Kc1 {[%clk 0:00:42.5]} 27... Rg5 {[%clk 0:01:58.8]}
28. Rxg5 {[%clk 0:00:34.2]} 28... Nxg5 {[%clk 0:01:58.1]} 29. Rf1 {[%clk
0:00:29.8]} 29... Ke6 {[%clk 0:01:58]} 30. Ng4 {[%clk 0:00:28.1]} 30... Ne4
{[%clk 0:01:55.1]} 31. Nxh6 {[%clk 0:00:24.5]} 31... Rh8 {[%clk 0:01:54.7]} 32.
Nxf7 {[%clk 0:00:24.5]} 32... Rxh5 {[%clk 0:01:53.7]} 33. Nd8+ {[%clk
0:00:20.1]} 33... Ke7 {[%clk 0:01:53.1]} 34. Nxb7 {[%clk 0:00:21]} 34... Rh2
{[%clk 0:01:50.5]} 35. Nc5 {[%clk 0:00:20.6]} 35... Nf2 {[%clk 0:01:46.8]} 36.
a4 {[%clk 0:00:19.4]} 36... bxa4 {[%clk 0:01:44.7]} 37. Nxa4 {[%clk 0:00:19.4]}
37... Nd3+ {[%clk 0:01:44.4]} 38. Kb1 {[%clk 0:00:19.4]} 38... Re2 {[%clk
0:01:44.2]} 39. Rh1 {[%clk 0:00:16]} 39... Rxe3 {[%clk 0:01:44.2]} 40. Nb6
{[%clk 0:00:15.2]} 40... Re2 {[%clk 0:01:41.2]} 41. Nxd5+ {[%clk 0:00:14.5]}
41... Kd6 {[%clk 0:01:41.6]} 42. Nb4 {[%clk 0:00:14]} 42... Rxb2+ {[%clk
0:01:35.5]} 43. Ka1 {[%clk 0:00:14]} 43... Rb3 {[%clk 0:01:35.9]} 44. Rh6+
{[%clk 0:00:10.7]} 44... Kd7 {[%clk 0:01:35.7]} 45. Ka2 {[%clk 0:00:05.9]} 45...
Rxc3 {[%clk 0:01:34.1]} 46. Nxd3 {[%clk 0:00:05.4]} 46... cxd3 {[%clk
0:01:32.8]} 47. Kb2 {[%clk 0:00:05.5]} 47... d2 {[%clk 0:01:32.3]} 48. Rh1
{[%clk 0:00:04.2]} 48... Rd3 {[%clk 0:01:32.6]} 49. Rd1 {[%clk 0:00:04.1]} 49...
Rxd4 {[%clk 0:01:33.1]} 50. Kc3 {[%clk 0:00:04.6]} 50... Kd6 {[%clk 0:01:33.6]}
51. Rxd2 {[%clk 0:00:05.5]} 51... Rxd2 {[%clk 0:01:33.5]} 52. Kxd2 {[%clk
0:00:06.4]} 1/2-1/2

[Event "*** Titled Tuesday Blitz"]
[Site "Chess.com"]
[Date "2020.04.14"]
[Round "9"]
[White "juniortay"]
[Black "LordIron"]
[Result "0-1"]
[WhiteElo "2458"]
[BlackElo "2259"]
[TimeControl "180+1"]
[EndTime "11:42:11 PDT"]
[Termination "LordIron won by resignation"]

1. e4 {[%clk 0:03:00.9]} 1... c5 {[%clk 0:02:29.7]} 2. Nf3 {[%clk 0:03:00.1]}
2... d6 {[%clk 0:02:28.7]} 3. d4 {[%clk 0:03:00.1]} 3... Nf6 {[%clk 0:02:24.6]}
4. Nc3 {[%clk 0:02:59.3]} 4... cxd4 {[%clk 0:02:24.5]} 5. Nxd4 {[%clk
0:02:59.8]} 5... a6 {[%clk 0:02:25.2]} 6. f4 {[%clk 0:03:00.1]} 6... Qc7 {[%clk
0:02:19.9]} 7. Nf3 {[%clk 0:02:59.5]} 7... Nbd7 {[%clk 0:02:19.7]} 8. Bd3 {[%clk
0:03:00]} 8... g6 {[%clk 0:02:13.1]} 9. a4 {[%clk 0:02:59]} 9... Bg7 {[%clk
0:02:13.3]} 10. O-O {[%clk 0:02:59.5]} 10... O-O {[%clk 0:02:13.6]} 11. Qe1
{[%clk 0:02:59.7]} 11... b6 {[%clk 0:02:09.6]} 12. Qh4 {[%clk 0:02:58.5]} 12...
Bb7 {[%clk 0:01:59.2]} 13. f5 {[%clk 0:02:57.2]} 13... gxf5 {[%clk 0:01:52.9]}
14. Bh6 {[%clk 0:02:55.7]} 14... Bxh6 {[%clk 0:01:38.7]} 15. Qxh6 {[%clk
0:02:53.7]} 15... fxe4 {[%clk 0:01:38.2]} 16. Ng5 {[%clk 0:02:24.4]} 16... exd3
{[%clk 0:01:28.2]} 17. Rf4 {[%clk 0:02:24.7]} 17... Qc5+ {[%clk 0:01:18]} 18.
Kh1 {[%clk 0:02:23.3]} 18... d2 {[%clk 0:01:06.1]} 19. Rg4 {[%clk 0:01:50.7]}
19... Qf5 {[%clk 0:00:35.1]} 20. Rg3 {[%clk 0:01:32.4]} 20... Kh8 {[%clk
0:00:20]} 21. a5 {[%clk 0:00:39.5]} 21... Ne5 {[%clk 0:00:19.8]} 22. axb6 {[%clk
0:00:37.3]} 22... Rg8 {[%clk 0:00:19.8]} 23. h4 {[%clk 0:00:31.5]} 23... Rg6
{[%clk 0:00:18.2]} 24. Nxf7+ {[%clk 0:00:18.4]} 24... Nxf7 {[%clk 0:00:18.4]}
25. Qxd2 {[%clk 0:00:19.3]} 25... Rxg3 {[%clk 0:00:17.3]} 26. Kh2 {[%clk
0:00:18.8]} 26... Rxg2+ {[%clk 0:00:17.1]} 27. Qxg2 {[%clk 0:00:19.2]} 27...
Bxg2 {[%clk 0:00:15.7]} 28. Kxg2 {[%clk 0:00:20.1]} 28... Rg8+ {[%clk
0:00:15.6]} 0-1

[Event "*** Titled Tuesday Blitz"]
[Site "Chess.com"]
[Date "2020.04.14"]
[Round "9"]
[White "Hikaru"]
[Black "OK97"]
[Result "1-0"]
[WhiteElo "3229"]
[BlackElo "2737"]
[TimeControl "180+1"]
[EndTime "11:42:12 PDT"]
[Termination "Hikaru won by resignation"]

1. b3 {[%clk 0:03:00.9]} 1... e5 {[%clk 0:02:59.3]} 2. Bb2 {[%clk 0:03:01.3]}
2... Nc6 {[%clk 0:02:59.2]} 3. e3 {[%clk 0:03:01.4]} 3... d5 {[%clk 0:02:59.6]}
4. Bb5 {[%clk 0:03:00.2]} 4... Bd6 {[%clk 0:03:00]} 5. f4 {[%clk 0:02:57.8]}
5... f6 {[%clk 0:02:59]} 6. fxe5 {[%clk 0:02:53]} 6... fxe5 {[%clk 0:02:57.9]}
7. Bxc6+ {[%clk 0:02:46.8]} 7... bxc6 {[%clk 0:02:57.8]} 8. Bxe5 {[%clk
0:02:47.5]} 8... Qh4+ {[%clk 0:02:54.1]} 9. g3 {[%clk 0:02:47.6]} 9... Qe4
{[%clk 0:02:53.4]} 10. Bxd6 {[%clk 0:02:47.9]} 10... Qxh1 {[%clk 0:02:32.3]} 11.
Qh5+ {[%clk 0:02:30.9]} 11... Kd7 {[%clk 0:02:20]} 12. Bf4 {[%clk 0:02:08.2]}
12... Qxg1+ {[%clk 0:02:12.6]} 13. Ke2 {[%clk 0:02:08]} 13... Qg2+ {[%clk
0:02:12.9]} 14. Ke1 {[%clk 0:02:08.3]} 14... Qe4 {[%clk 0:01:59.5]} 15. Nc3
{[%clk 0:02:07]} 15... Qg6 {[%clk 0:01:58.1]} 16. Qe5 {[%clk 0:02:06.4]} 16...
Ne7 {[%clk 0:01:44.6]} 17. Na4 {[%clk 0:01:58.9]} 17... Qf6 {[%clk 0:01:12.1]}
18. Qxc7+ {[%clk 0:01:58.9]} 18... Ke8 {[%clk 0:01:12.4]} 19. Be5 {[%clk
0:01:53.2]} 19... Qf5 {[%clk 0:01:05.1]} 20. d3 {[%clk 0:01:49.4]} 20... Rf8
{[%clk 0:00:58.5]} 21. Kd2 {[%clk 0:01:48.1]} 21... Qd7 {[%clk 0:00:57.3]} 22.
Qa5 {[%clk 0:01:47.4]} 22... Rf2+ {[%clk 0:00:56.9]} 23. Kc3 {[%clk 0:01:47.7]}
23... d4+ {[%clk 0:00:56.3]} 24. Bxd4 {[%clk 0:01:47.6]} 24... Nd5+ {[%clk
0:00:55]} 25. Kb2 {[%clk 0:01:47.6]} 25... Qe7 {[%clk 0:00:41.7]} 26. e4 {[%clk
0:01:39.4]} 26... Rxh2 {[%clk 0:00:08.3]} 27. exd5 {[%clk 0:01:38.4]} 27... cxd5
{[%clk 0:00:07.1]} 28. Re1 {[%clk 0:01:32.4]} 28... Re2 {[%clk 0:00:06.7]} 29.
Rxe2 {[%clk 0:01:32.9]} 29... Qxe2 {[%clk 0:00:07.5]} 30. Qxd5 {[%clk
0:01:33.4]} 30... Rb8 {[%clk 0:00:06.6]} 31. Qg8+ {[%clk 0:01:33.4]} 31... Kd7
{[%clk 0:00:05.9]} 32. Qxg7+ {[%clk 0:01:33.5]} 32... Qe7 {[%clk 0:00:05.4]} 33.
Qxe7+ {[%clk 0:01:31.6]} 33... Kxe7 {[%clk 0:00:06.3]} 34. Bxa7 {[%clk
0:01:32.3]} 34... Rb7 {[%clk 0:00:04.4]} 35. Be3 {[%clk 0:01:32]} 35... Bf5
{[%clk 0:00:03.9]} 36. Nc5 {[%clk 0:01:32.1]} 36... Rb8 {[%clk 0:00:03.1]} 37.
a4 {[%clk 0:01:31.7]} 37... Rg8 {[%clk 0:00:02.5]} 38. Bf4 {[%clk 0:01:32.1]}
38... h5 {[%clk 0:00:03.2]} 39. a5 {[%clk 0:01:32.5]} 39... Bc8 {[%clk
0:00:03.5]} 40. a6 {[%clk 0:01:32.3]} 40... Bxa6 {[%clk 0:00:03.3]} 41. Nxa6
{[%clk 0:01:32.8]} 41... Rg4 {[%clk 0:00:04.2]} 42. Bb8 {[%clk 0:01:32.1]} 42...
Kd7 {[%clk 0:00:03.5]} 43. Be5 {[%clk 0:01:31.1]} 43... Kc6 {[%clk 0:00:03.9]}
44. d4 {[%clk 0:01:31.6]} 44... Kd5 {[%clk 0:00:04.3]} 45. Nc5 {[%clk 0:01:31]}
45... Rg8 {[%clk 0:00:03.8]} 46. c4+ {[%clk 0:01:30]} 46... Kc6 {[%clk
0:00:03.6]} 47. b4 {[%clk 0:01:30.9]} 1-0